lending/lending_fUSD_20250917
["ID","MTS","AMOUNT","RATE_DAILY","PERIOD"]
[385863253,1758067328074,-151.63,0.0001934,2]
[385863254,1758067328097,-24.60456479,0.00019421,2]
[385863255,1758067333147,-225.39543521,0.00019421,2]
[385863256,1758067333170,-165.9304,0.00019502,2]
[385863261,1758067601005,367.67,0.0003013,120]
[385863274,1758067832337,-271.0,0.0002,2]
[385863275,1758067832346,-150.58,0.0002,2]
[385863276,1758067832355,-152.42,0.0002,2]
[385863277,1758067832365,-152.17,0.0002,2]
[385863278,1758067832375,-151.74,0.00020196,2]
[385863279,1758067832385,-250.0,0.00020337,2]
[385863280,1758067832394,-155.63,0.00020399,2]
[385863281,1758067832404,-151.63,0.00020478,2]
[385863282,1758067832413,-250.0,0.00021058,2]
[385863283,1758067832423,-266.0,0.0002118,2]
[385863284,1758067832433,-151.63,0.00021615,2]
[385863285,1758067832442,-298.57,0.00022,2]
[385863286,1758067832452,-173.86614942,0.0002208,2]
[385863287,1758067832462,-250.0,0.00022216,2]
[385863288,1758067832471,-521.0,0.0002237,2]
[385863289,1758067832480,-167.52729722,0.00022401,2]
[385863290,1758067832508,-59.47270278,0.00022401,2]
[385863291,1758067832517,-300.0,0.00022401,2]
[385863292,1758067832527,-1200.0,0.00022401,2]
[385863293,1758067832536,-152.32,0.00022402,2]
[385863294,1758067832545,-526.3,0.00022402,2]
[385863295,1758067832555,-519.83,0.00022402,2]
[385863296,1758067832564,-534.88,0.00022402,2]
[385863297,1758067832574,-534.46,0.00022402,2]
[385863299,1758067832583,-151.63,0.00022753,2]
[385863301,1758067832592,-510.0,0.0002355,2]
[385863303,1758067832601,-1603.780969,0.00023771,2]
[385863305,1758067832611,-151.63,0.00023891,2]
[385863307,1758067832620,-298.57,0.00024,2]
[385863309,1758067832629,-1680.0,0.00024446,2]
[385863311,1758067832638,-499.0,0.0002473,2]
[385863313,1758067832647,-151.0,0.00024885,2]
[385863315,1758067832657,-200.0,0.00024885,2]
[385863317,1758067832665,-151.0,0.00024885,2]
[385863318,1758067832675,-600.0,0.00024885,2]
[385863319,1758067832684,-151.0,0.00024885,2]
[385863320,1758067832692,-151.0,0.00024885,2]
[385863321,1758067832701,-151.0,0.00024885,2]
[385863322,1758067832710,-151.0,0.00024885,2]
[385863323,1758067832719,-151.0,0.00024885,2]
[385863324,1758067832728,-151.0,0.00024885,2]
[385863326,1758067832737,-151.0,0.00024885,2]
[385863328,1758067832746,-200.0,0.00024885,2]
[385863330,1758067832755,-151.0,0.00024885,2]
[385863332,1758067832764,-151.0,0.00024885,2]
[385863333,1758067832773,-151.0,0.00024885,2]
[385863335,1758067832781,-151.0,0.00024885,2]
[385863337,1758067832791,-200.0,0.00024885,2]
[385863339,1758067832800,-500.0,0.00024885,2]
[385863341,1758067832809,-500.0,0.00024899,2]
[385863343,1758067832817,-500.0,0.00024899,2]
[385863345,1758067832826,-500.0,0.00024899,2]
[385863347,1758067832835,-153.53003741,0.00024899,2]
[385863349,1758067832845,-14966.24829788,0.000249,2]
[385863351,1758067832854,-151.63,0.00025028,2]
[385863353,1758067832863,-500.0,0.00025243,2]
[385863355,1758067832872,-600.0,0.00025433,2]
[385863357,1758067832881,-5.63204783,0.00025664,2]
[385863360,1758067832893,-144.36795217,0.00025664,2]
[385863362,1758067832902,-298.57,0.00025763,7]
[385863364,1758067832911,-515.95536276,0.00025868,2]
[385863366,1758067832920,-160.0,0.00025868,2]
[385863368,1758067832930,-160.0,0.00025868,2]
[385863370,1758067832939,-213.1401216,0.00025887,2]
[385863372,1758067832948,-488.0,0.0002592,2]
[385863374,1758067832959,-151.0,0.00026056,2]
[385863376,1758067832969,-257.91778498,0.00026056,2]
[385863378,1758067832979,-2541.92735177,0.00026056,2]
[385863380,1758067832988,-670.58624095,0.00026056,2]
[385863382,1758067832997,-151.0,0.00026056,2]
[385863384,1758067833008,-322.6107,0.00026056,2]
[385863386,1758067833018,-1000.0,0.00026056,2]
[385863388,1758067833031,-1000.0,0.00026056,2]
[385863390,1758067833040,-151.0,0.00026056,2]
[385863392,1758067833050,-151.0,0.00026056,2]
[385863394,1758067833060,-151.0,0.00026056,2]
[385863396,1758067833069,-151.0,0.00026056,2]
[385863398,1758067833079,-151.0,0.00026056,2]
[385863400,1758067833089,-151.0,0.00026056,2]
[385863402,1758067833099,-151.0,0.00026056,2]
[385863404,1758067833108,-151.0,0.00026056,2]
[385863406,1758067833118,-1000.0,0.00026056,2]
[385863408,1758067833127,-151.0,0.00026056,2]
[385863410,1758067833137,-1000.0,0.00026056,2]
[385863412,1758067833147,-151.0,0.00026056,2]
[385863414,1758067833156,-290.3108049,0.00026056,2]
[385863420,1758067833204,-709.6891951,0.00026056,2]
[385863422,1758067833214,-151.0,0.00026056,2]
[385863424,1758067833223,-500.0,0.00026056,2]
[385863426,1758067833233,-1000.0,0.00026056,2]
[385863428,1758067833242,-151.0,0.00026056,2]
[385863430,1758067833252,-152.26911472,0.00026056,2]
[385863432,1758067833262,-513.55194218,0.00026056,2]
[385863471,1758067838303,-486.44805782,0.00026056,2]
[385863472,1758067838314,-500.0,0.00026056,2]
[385863473,1758067838324,-1000.0,0.00026056,2]
[385863474,1758067838334,-151.0,0.00026056,2]
[385863475,1758067838344,-254.23861602,0.00026056,2]
[385863476,1758067838354,-500.0,0.00026056,2]
[385863477,1758067838363,-1000.0,0.00026056,2]
[385863478,1758067838373,-500.0,0.00026056,2]
[385863479,1758067838382,-973.39698041,0.00026056,2]
[385863480,1758067838394,-26.60301959,0.00026056,2]
[385863481,1758067838404,-500.0,0.00026056,2]
[385863482,1758067838413,-1000.0,0.00026056,2]
[385863483,1758067838423,-500.0,0.00026056,2]
[385863484,1758067838433,-1000.0,0.00026056,2]
[385863485,1758067838442,-500.0,0.00026056,2]
[385863486,1758067838451,-808.09698037,0.00026056,2]
[385863487,1758067838466,-191.90301963,0.00026056,2]
[385863488,1758067838476,-444.17201771,0.00026056,2]
[385863489,1758067838551,-55.82798229,0.00026056,2]
[385863490,1758067838560,-900.13473392,0.00026056,2]
[385863491,1758067838571,-99.86526608,0.00026056,2]
[385863492,1758067838581,-317.38594855,0.00026056,2]
[385863493,1758067838592,-182.61405145,0.00026056,2]
[385863494,1758067838601,-1000.0,0.00026056,2]
[385863495,1758067838610,-500.0,0.00026056,2]
[385863496,1758067838619,-247.52368447,0.00026056,2]
[385863508,1758067840582,-752.47631553,0.00026056,2]
[385863509,1758067840592,-500.0,0.00026056,2]
[385863510,1758067840601,-1058.08814873,0.00026056,2]
[385863511,1758067840610,-500.0,0.00026056,2]
[385863512,1758067840620,-500.0,0.00026056,2]
[385863513,1758067840629,-500.0,0.00026056,2]
[385863514,1758067840638,-500.0,0.00026056,2]
[385863515,1758067840648,-222.51121308,0.00026056,2]
[385863516,1758067840657,-151.63,0.00026166,2]
[385863517,1758067840666,-19.25672227,0.00026399,2]
[385863518,1758067840677,-130.74327773,0.00026399,2]
[385863519,1758067840687,-666.0,0.00026406,3]
[385863520,1758067840697,-250.0,0.00026427,2]
[385863521,1758067840707,-151.0,0.00026604,2]
[385863522,1758067840717,-1061.0,0.00026677,2]
[385863523,1758067840726,-219.12,0.00026714,2]
[385863524,1758067840735,-195.45,0.00026734,2]
[385863525,1758067840744,-200.0,0.00026823,2]
[385863526,1758067840754,-176.16,0.00027041,2]
[385863527,1758067840763,-477.0,0.000271,2]
[385863528,1758067840772,-553.0,0.00027137,2]
[385863529,1758067840782,-151.0,0.00027152,2]
[385863530,1758067840791,-151.63,0.00027304,2]
[385863531,1758067840800,-146.85027972,0.00027319,2]
[385863532,1758067840812,-28.13972028,0.00027319,2]
[385863533,1758067840822,-168.35121247,0.00027397,2]
[385863534,1758067840831,-157.54,0.00027425,30]
[385863535,1758067840840,-267.46074303,0.00027425,2]
[385863536,1758067840850,-334.5472959,0.00027425,2]
[385863537,1758067840859,-150.0,0.00027449,7]
[385863538,1758067840868,-250.0,0.00027461,2]
[385863539,1758067840878,-298.57,0.00027644,7]
[385863540,1758067840888,-5000.0,0.00027673,2]
[385863541,1758067840897,-151.0,0.000277,2]
[385863542,1758067840906,-300.0,0.00027786,2]
[385863543,1758067840915,-308.9,0.00027862,2]
[385863544,1758067840926,-151.0,0.00028248,2]
[385863545,1758067840935,-466.0,0.0002829,2]
[385863546,1758067840944,-151.63,0.00028441,2]
[385863547,1758067840954,-174.99,0.00028447,2]
[385863548,1758067840963,-195.45,0.0002874,2]
[385863550,1758067840972,-277.35679052,0.00028794,2]
[385863551,1758067840982,-346.92554585,0.00028794,2]
[385863552,1758067840992,-192.00799701,0.00028795,2]
[385863553,1758067841001,-695.39793187,0.00028795,2]
[385863554,1758067841011,-151.0,0.00028796,2]
[385863555,1758067841020,-524.74,0.00028904,2]
[385863556,1758067841033,-161.4617499,0.00029,5]
[385863557,1758067841042,-246.67369301,0.00029007,2]
[385863558,1758067841051,-323.40354164,0.00029007,2]
[385863559,1758067841061,-500.0,0.00029007,2]
[385863560,1758067841070,-925.53677852,0.00029008,2]
[385863561,1758067841230,-3600.0,0.00029008,2]
[385863562,1758067841241,-2039.90814745,0.00029008,2]
[385863563,1758067841251,-58169.36399327,0.00029008,2]
[385863570,1758067843497,-9810.52,0.00029008,2]
[385863571,1758067843762,-2276.38462708,0.00029008,2]
[385863585,1758067846513,-630.27100061,0.00029008,2]
[385863586,1758067846524,-260.56899761,0.00029008,2]
[385863587,1758067846569,-441.0,0.00029008,2]
[385863588,1758067846619,-277.31,0.00029008,2]
[385863712,1758068304413,194.36,0.000131,2]
[385863713,1758068304626,194.36,0.00013789,2]
[385863714,1758068304851,194.36,0.00014479,2]
[385863715,1758068305057,194.36,0.00015168,2]
[385863716,1758068305277,194.36,0.00015858,2]
[385863717,1758068305487,194.36,0.00016547,2]
[385863718,1758068305894,194.36,0.00017237,2]
[385863719,1758068306151,194.36,0.00017926,2]
[385863720,1758068306326,194.36,0.00018615,2]
[385863721,1758068306574,194.36,0.00019305,2]
[385863726,1758068453311,323.72,0.00019335,2]
[385863739,1758068950874,500.0,0.00013699,2]
[385863747,1758069031551,-487.728467,0.00019796,2]
[385863748,1758069031560,-250.0,0.00019896,2]
[385863749,1758069031570,-194.35542099,0.00019899,2]
[385863750,1758069031579,-500.0,0.00019973,2]
[385863751,1758069031588,-557.51909734,0.0001999,2]
[385863752,1758069031597,-194.36,0.00019994,2]
[385863753,1758069031607,-1200.0,0.00019998,2]
[385863754,1758069031616,-300.0,0.00019998,2]
[385863755,1758069031625,-1200.0,0.00019999,2]
[385863756,1758069031636,-424.0,0.00019999,2]
[385863757,1758069031645,-252.18859083,0.00019999,2]
[385863758,1758069031654,-500.0,0.00019999,2]
[385863759,1758069031668,-298.1741042,0.00019999,2]
[385863760,1758069031677,-183.72555971,0.00019999,2]
[385863761,1758069031686,-10983.94600597,0.0002,2]
[385863762,1758069031701,-1765.80398402,0.0002,2]
[385863763,1758069031768,-706.99063194,0.0002,2]
[385863846,1758069037453,-1416.90670523,0.0002,2]
[385863861,1758069037610,-3891.07764794,0.0002,2]
[385863862,1758069037624,-35801.98903142,0.0002,2]
[385863863,1758069037660,-80433.28599348,0.0002,2]
[385863864,1758069037675,-1000.0,0.00020521,2]
[385863865,1758069037684,-194.36,0.00020684,2]
[385863866,1758069037693,-740.06899113,0.00021,2]
[385863867,1758069037703,-1500.0,0.00021068,2]
[385863868,1758069037711,-194.36,0.00021373,2]
[385863869,1758069037720,-2000.0,0.00021616,2]
[385863870,1758069037730,-420.0,0.00021776,2]
[385863871,1758069037740,-1680.0,0.0002188,2]
[385863872,1758069037749,-250.0,0.00021883,2]
[385863873,1758069037759,-250.0,0.00021886,2]
[385863874,1758069037768,-151.87,0.000219,2]
[385863875,1758069037777,-152.97,0.000219,2]
[385863876,1758069037786,-150.91,0.000219,2]
[385863877,1758069037796,-150.54,0.000219,2]
[385863878,1758069037805,-152.66,0.000219,2]
[385863879,1758069037814,-150.26,0.000219,2]
[385863880,1758069037823,-266.92041006,0.000219,2]
[385863881,1758069037832,-500.0,0.0002195,2]
[385863890,1758069038291,-152.82,0.00022,2]
[385863891,1758069038310,-150.05,0.00022,2]
[385863892,1758069038328,-1405.21387205,0.00022,2]
[385863893,1758069038339,-194.36,0.00022063,2]
[385863894,1758069038349,-150.0,0.00022071,2]
[385863895,1758069038360,-375.05,0.00022071,2]
[385863896,1758069038370,-2500.0,0.00022164,2]
[385863897,1758069038380,-500.0,0.00022319,2]
[385863898,1758069038389,-13199.47,0.00022439,2]
[385863899,1758069038398,-1349.3,0.0002248,2]
[385863900,1758069038407,-998.50212785,0.00022498,2]
[385863901,1758069038416,-764.39537623,0.00022712,2]
[385863902,1758069038425,-194.36,0.00022752,2]
[385863903,1758069038435,-375.16,0.00022797,2]
[385863904,1758069038447,-188.96,0.00022797,2]
[385863905,1758069038456,-514.92,0.00022838,2]
[385863906,1758069038466,-162.22,0.00023036,2]
[385863907,1758069038475,-200.0,0.00023036,2]
[385863908,1758069038484,-5513.0,0.000232,5]
[385863909,1758069038493,-194.36,0.00023442,2]
[385863910,1758069038503,-169.0804773,0.00023612,2]
[385863911,1758069038512,-1483.1466338,0.00023673,2]
[385863912,1758069038523,-587.0,0.00023711,2]
[385863913,1758069038532,-200.0,0.00023773,2]
[385863914,1758069038541,-300.0,0.00023819,2]
[385863915,1758069038550,-815.352,0.000239,2]
[385863916,1758069038561,-2351.0,0.0002394,2]
[385863917,1758069038570,-3667.16,0.00024,5]
[385863918,1758069038580,-600.0,0.00024004,2]
[385863919,1758069038589,-200.0,0.00024004,2]
[385863920,1758069038598,-151.0,0.00024004,2]
[385863921,1758069038607,-151.0,0.00024004,2]
[385863922,1758069038617,-151.0,0.00024004,2]
[385863923,1758069038627,-151.0,0.00024004,2]
[385863924,1758069038636,-151.0,0.00024004,2]
[385863925,1758069038645,-151.0,0.00024004,2]
[385863926,1758069038656,-151.0,0.00024004,2]
[385863927,1758069038665,-151.0,0.00024004,2]
[385863928,1758069038678,-151.0,0.00024004,2]
[385863929,1758069038687,-151.0,0.00024004,2]
[385863930,1758069038696,-151.0,0.00024004,2]
[385863931,1758069038705,-151.0,0.00024004,2]
[385863932,1758069038715,-151.0,0.00024004,2]
[385863933,1758069038723,-200.0,0.00024004,2]
[385863934,1758069038732,-2500.0,0.00024048,2]
[385863935,1758069038744,-2500.0,0.00024048,2]
[385863936,1758069038753,-4594.70574366,0.000241,2]
[385863937,1758069038762,-194.36,0.00024131,2]
[385863938,1758069038771,-3631.11405305,0.0002421,2]
[385863939,1758069038780,-600.0,0.00024552,2]
[385863940,1758069038790,-375.16,0.0002458,2]
[385863941,1758069038799,-188.96,0.0002458,2]
[385863942,1758069038809,-343.64,0.00024658,2]
[385863943,1758069038818,-1000.0,0.00024658,2]
[385863944,1758069038825,-1000.0,0.00024658,2]
[385863945,1758069038834,-1000.0,0.00024658,2]
[385863946,1758069038843,-1000.0,0.00024658,2]
[385863947,1758069038853,-1000.0,0.00024658,2]
[385863948,1758069038862,-1000.0,0.00024658,2]
[385863949,1758069038871,-1000.0,0.00024658,2]
[385863950,1758069038880,-1000.0,0.00024658,2]
[385863951,1758069038889,-1000.0,0.00024658,2]
[385863952,1758069038899,-1000.0,0.00024658,2]
[385863953,1758069038908,-1000.0,0.00024658,2]
[385863954,1758069038917,-1000.0,0.00024658,2]
[385863955,1758069038926,-1000.0,0.00024658,2]
[385863956,1758069038935,-1000.0,0.00024658,2]
[385863957,1758069038944,-1000.0,0.00024658,2]
[385863958,1758069038954,-1000.0,0.00024658,2]
[385863959,1758069038963,-1000.0,0.00024658,2]
[385863960,1758069038972,-1000.0,0.00024658,2]
[385863961,1758069038981,-1000.0,0.00024658,2]
[385863962,1758069038994,-1000.0,0.00024658,2]
[385863963,1758069039003,-1000.0,0.00024658,2]
[385863964,1758069039011,-1000.0,0.00024658,2]
[385863965,1758069039021,-1000.0,0.00024658,2]
[385863966,1758069039031,-1000.0,0.00024658,2]
[385863967,1758069039041,-1000.0,0.00024658,2]
[385863968,1758069039050,-1000.0,0.00024658,2]
[385863969,1758069039060,-1000.0,0.00024658,2]
[385863970,1758069039069,-1000.0,0.00024658,2]
[385863971,1758069039078,-1000.0,0.00024658,2]
[385863972,1758069039088,-1000.0,0.00024658,2]
[385863973,1758069039097,-1000.0,0.00024658,2]
[385863974,1758069039106,-1000.0,0.00024658,2]
[385863975,1758069039115,-1000.0,0.00024658,2]
[385863976,1758069039124,-1000.0,0.00024658,2]
[385863977,1758069039133,-1000.0,0.00024658,2]
[385863978,1758069039142,-1000.0,0.00024658,2]
[385863979,1758069039151,-1000.0,0.00024658,2]
[385863980,1758069039160,-1000.0,0.00024658,2]
[385863981,1758069039169,-1000.0,0.00024658,2]
[385863982,1758069039179,-1000.0,0.00024658,2]
[385863983,1758069039188,-1000.0,0.00024658,2]
[385863984,1758069039197,-1000.0,0.00024658,2]
[385863985,1758069039206,-1000.0,0.00024658,2]
[385863986,1758069039215,-1000.0,0.00024658,2]
[385863987,1758069039224,-1000.0,0.00024658,2]
[385863988,1758069039233,-1000.0,0.00024658,2]
[385863989,1758069039246,-1000.0,0.00024658,2]
[385863990,1758069039255,-1000.0,0.00024658,2]
[385863991,1758069039265,-206.0,0.00024658,2]
[385863992,1758069039274,-400.0,0.00024732,2]
[385863993,1758069039284,-150.0,0.00024775,2]
[385863994,1758069039293,-263.45891707,0.00024777,2]
[385863995,1758069039303,-335.78097274,0.00024778,2]
[385863996,1758069039312,-408.10302841,0.0002478,2]
[385863997,1758069039322,-480.42508408,0.00024782,2]
[385863998,1758069039331,-552.74713975,0.00024783,2]
[385863999,1758069039340,-1539.91122788,0.00024785,2]
[385864000,1758069039349,-625.06919541,0.00024785,2]
[385864001,1758069039359,-697.39125108,0.00024787,2]
[385864002,1758069039370,-769.71330675,0.00024788,2]
[385864003,1758069039380,-842.03536242,0.0002479,2]
[385864004,1758069039389,-490.60833027,0.000248,2]
[385864005,1758069039398,-161.90209112,0.000248,2]
[385864007,1758069039407,-412292.742938,0.000248,3]
[385864008,1758069039417,-160.0,0.000248,3]
[385864009,1758069039427,-194.36,0.00024821,2]
[385864010,1758069039437,-500.0,0.00024873,2]
[385864011,1758069039446,-467478.685006,0.000249,3]
[385864012,1758069039454,-15016.29524272,0.000249,2]
[385864013,1758069039462,-151.03,0.0002499,2]
[385864014,1758069039470,-195.45,0.00024995,2]
[385864015,1758069039480,-2702.25254894,0.00025,3]
[385864016,1758069039491,-352.25085986,0.00025,2]
[385864017,1758069039500,-360.0,0.00025,2]
[385864018,1758069039509,-2986.14792546,0.00025,2]
[385864019,1758069039519,-3172.95770693,0.00025,2]
[385864020,1758069039528,-15050.74424983,0.00025,2]
[385864021,1758069039538,-1044.10841127,0.00025,2]
[385864022,1758069039547,-164.10963093,0.00025,2]
[385864024,1758069039557,-3225.87307139,0.00025,2]
[385864025,1758069039566,-6582.42947,0.00025,2]
[385864026,1758069039576,-11401.9191465,0.00025,3]
[385864027,1758069039585,-15000.0,0.0002501,2]
[385864028,1758069039595,-150.0,0.00025073,2]
[385864029,1758069039604,-169.08047727,0.00025094,2]
[385864030,1758069039614,-600.0,0.000251,2]
[385864031,1758069039625,-105395.75237668,0.000251,2]
[385864032,1758069039635,-300.0,0.00025189,2]
[385864033,1758069039644,-666.0,0.0002528,3]
[385864034,1758069039653,-1000.0,0.00025421,2]
[385864035,1758069039663,-1213.68,0.00025508,2]
[385864036,1758069039679,-194.36,0.0002551,2]
[385864037,1758069039688,-150.0,0.00025581,7]
[385864038,1758069039698,-250.0,0.00025621,2]
[385864039,1758069039707,-600.0,0.00025648,2]
[385864040,1758069039716,-600.0,0.0002569,2]
[385864041,1758069039725,-823.0,0.00025819,2]
[385864042,1758069039735,-1539.91122784,0.00025909,2]
[385864043,1758069039744,-162.22,0.00025916,2]
[385864044,1758069039753,-490.60833024,0.00025922,2]
[385864045,1758069039762,-1500.0,0.00025968,2]
[385864046,1758069039771,-589.34940244,0.0002599,2]
[385864047,1758069039781,-515.95536276,0.00025998,2]
[385864048,1758069039790,-160.0,0.00025998,2]
[385864049,1758069039800,-3367.4471573,0.00026,2]
[385864050,1758069039809,-15627.55790029,0.00026,7]
[385864051,1758069039818,-2013.48440894,0.00026,2]
[385864052,1758069039827,-163.84718047,0.00026,10]
[385864053,1758069039836,-160.0,0.00026,7]
[385864054,1758069039846,-160.0,0.00026053,2]
[385864055,1758069039855,-160.0,0.00026053,2]
[385864056,1758069039864,-152.31,0.00026056,2]
[385864057,1758069039873,-152.05,0.00026056,2]
[385864058,1758069039883,-415.30012593,0.00026168,2]
[385864059,1758069039892,-3292.0,0.00026193,2]
[385864060,1758069039902,-600.0,0.00026196,2]
[385864061,1758069039910,-194.36,0.00026199,2]
[385864062,1758069039920,-250.0,0.0002629,2]
[385864063,1758069039930,-375.16,0.00026364,7]
[385864064,1758069039939,-188.96,0.00026364,7]
[385864065,1758069039949,-150.0,0.00026391,2]
[385864066,1758069039958,-150.0,0.00026482,4]
[385864067,1758069039967,-150.0,0.00026482,4]
[385864068,1758069039976,-33479.72788809,0.000265,2]
[385864069,1758069039985,-1771.41817218,0.00026516,2]
[385864070,1758069039994,-250.0,0.00026536,2]
[385864071,1758069040003,-200.0,0.00026559,2]
[385864072,1758069040013,-169.08047727,0.00026576,2]
[385864073,1758069040022,-2000.0,0.000266,2]
[385864074,1758069040031,-800.0,0.00026649,2]
[385864075,1758069040040,-207.4,0.00026743,2]
[385864077,1758069040051,-600.0,0.00026744,2]
[385864079,1758069040059,-5078.64,0.00026774,2]
[385864081,1758069040068,-171.65,0.00026899,2]
[385864083,1758069040077,-4500.0,0.00027,2]
[385864085,1758069040086,-250.0,0.00027,2]
[385864087,1758069040095,-1014.66124548,0.00027,2]
[385864089,1758069040104,-2962.49457667,0.00027,15]
[385864092,1758069040113,-1539.91122784,0.00027033,2]
[385864094,1758069040122,-490.60833024,0.00027044,2]
[385864096,1758069040131,-9175.91,0.0002712,2]
[385864098,1758069040141,-554.0,0.00027137,2]
[385864100,1758069040149,-473.0,0.000272,2]
[385864102,1758069040158,-600.0,0.00027292,2]
[385864104,1758069040168,-5000.0,0.00027321,2]
[385864106,1758069040177,-4032.65902738,0.0002739,2]
[385864108,1758069040186,-7966.11758634,0.0002739,2]
[385864110,1758069040195,-3180.28805681,0.0002739,2]
[385864112,1758069040204,-500.0,0.00027397,5]
[385864114,1758069040214,-156.12626755,0.00027397,5]
[385864116,1758069040223,-9999.99,0.00027397,2]
[385864118,1758069040232,-499.99,0.00027397,2]
[385864120,1758069040243,-504.0,0.00027397,2]
[385864122,1758069040252,-1175.91,0.00027397,2]
[385864124,1758069040261,-9999.99,0.00027397,2]
[385864126,1758069040270,-150.99,0.00027397,2]
[385864128,1758069040280,-341.65,0.00027397,2]
[385864130,1758069040289,-83593.4,0.00027397,2]
[385864132,1758069040298,-285.69,0.00027397,12]
[385864134,1758069040307,-999.99,0.00027397,2]
[385864136,1758069040316,-9999.99,0.00027397,2]
[385864138,1758069040327,-13719.19,0.00027397,2]
[385864140,1758069040336,-1439.39,0.00027397,2]
[385864142,1758069040345,-9999.99,0.00027397,2]
[385864144,1758069040354,-1576.21,0.00027397,2]
[385864146,1758069040363,-9999.99,0.00027397,2]
[385864148,1758069040372,-417.24,0.00027397,2]
[385864150,1758069040381,-9999.99,0.00027397,2]
[385864152,1758069040390,-304.22,0.00027397,2]
[385864153,1758069040399,-3748.07,0.00027397,2]
[385864155,1758069040408,-97556.24,0.00027397,10]
[385864157,1758069040417,-2917.97,0.00027397,2]
[385864159,1758069040426,-156.69,0.00027425,30]
[385864161,1758069040435,-197.26994272,0.000275,2]
[385864163,1758069040444,-538.84008645,0.000275,2]
[385864165,1758069040453,-2053.68,0.00027509,2]
[385864167,1758069040462,-1000.0,0.00027608,5]
[385864169,1758069040470,-639.77374121,0.0002784,2]
[385864171,1758069040480,-343.64,0.00027895,2]
[385864173,1758069040490,-1000.0,0.00027945,5]
[385864175,1758069040500,-1021.09,0.00028,2]
[385864177,1758069040510,-8241.91850779,0.00028,2]
[385864179,1758069040519,-164.83837016,0.00028,2]
[385864181,1758069040529,-169.08047727,0.00028059,2]
[385864183,1758069040538,-4637.7655,0.00028103,2]
[385864185,1758069040547,-4034.1308,0.00028103,2]
[385864187,1758069040556,-842.0,0.00028114,2]
[385864189,1758069040565,-375.16,0.00028148,30]
[385864191,1758069040574,-188.96,0.00028148,30]
[385864193,1758069040584,-1539.91122784,0.00028157,2]
[385864195,1758069040593,-490.60833024,0.00028167,2]
[385864198,1758069040605,-463.0,0.0002838,2]
[385864200,1758069040615,-322.6107,0.00028467,2]
[385864202,1758069040624,-151.0,0.00028467,2]
[385864204,1758069040633,-8882.6885148,0.00028467,2]
[385864206,1758069040643,-670.58624095,0.00028467,2]
[385864208,1758069040652,-151.0,0.00028467,2]
[385864210,1758069040661,-151.0,0.00028467,2]
[385864212,1758069040674,-151.0,0.00028467,2]
[385864214,1758069040683,-160.0,0.00028467,2]
[385864216,1758069040693,-3000.0,0.00028467,2]
[385864218,1758069040702,-257.91778498,0.00028467,2]
[385864219,1758069040713,-151.0,0.00028467,2]
[385864220,1758069040722,-151.0,0.00028467,2]
[385864221,1758069040732,-151.0,0.00028467,2]
[385864222,1758069040744,-500.0,0.00028467,2]
[385864223,1758069040754,-500.0,0.00028467,2]
[385864224,1758069040763,-500.0,0.00028467,2]
[385864225,1758069040773,-500.0,0.00028467,2]
[385864226,1758069040782,-500.0,0.00028467,2]
[385864227,1758069040790,-500.0,0.00028467,2]